[Event "Live Chess"]
[Site "Chess.com"]
[Date "2023.05.20"]
[Round "-"]
[White "EdenHazard8"]
[Black "luckywookie"]
[Result "1-0"]
[WhiteElo "2048"]
[BlackElo "743"]
[TimeControl "300"]
[EndTime "14:27:25 PDT"]
[Termination "EdenHazard8 won by checkmate"]

1. e4 {[%clk 0:04:58.6]} 1... c6 {[%clk 0:04:58.5]} 2. c4 {[%clk 0:04:54.2]}
2... d5 {[%clk 0:04:47.1]} 3. exd5 {[%clk 0:04:52.8]} 3... cxd5 {[%clk
0:04:44.6]} 4. cxd5 {[%clk 0:04:51.7]} 4... Nf6 {[%clk 0:04:39.4]} 5. Nc3 {[%clk
0:04:49.9]} 5... Bd7 {[%clk 0:04:38.4]} 6. Nf3 {[%clk 0:04:48.3]} 6... a6 {[%clk
0:04:32.9]} 7. Be2 {[%clk 0:04:45.5]} 7... e6 {[%clk 0:04:30.2]} 8. dxe6 {[%clk
0:04:43]} 8... Bxe6 {[%clk 0:04:28.8]} 9. O-O {[%clk 0:04:42.1]} 9... Be7 {[%clk
0:04:16.8]} 10. b3 {[%clk 0:04:29.4]} 10... Nc6 {[%clk 0:04:15.5]} 11. Bb2
{[%clk 0:04:27.7]} 11... O-O {[%clk 0:04:13.8]} 12. Rc1 {[%clk 0:04:21.8]} 12...
Rc8 {[%clk 0:03:57.5]} 13. h3 {[%clk 0:04:13.8]} 13... Bd6 {[%clk 0:03:37.7]}
14. d4 {[%clk 0:04:06]} 14... Nd5 {[%clk 0:03:29.5]} 15. Re1 {[%clk 0:03:45]}
15... Qf6 {[%clk 0:03:12.9]} 16. Ne4 {[%clk 0:03:40.2]} 16... Qf4 {[%clk
0:03:04.6]} 17. Bc4 {[%clk 0:03:33.3]} 17... Bxh3 {[%clk 0:02:57.8]} 18. gxh3
{[%clk 0:03:19.7]} 18... g5 {[%clk 0:02:50.2]} 19. Bxd5 {[%clk 0:03:17]} 19...
g4 {[%clk 0:02:45.1]} 20. Nxd6 {[%clk 0:03:11]} 20... gxf3 {[%clk 0:02:38]} 21.
Qxf3 {[%clk 0:03:04]} 21... Qg5+ {[%clk 0:02:34.9]} 22. Qg2 {[%clk 0:02:59.8]}
22... Qxg2+ {[%clk 0:02:32.6]} 23. Kxg2 {[%clk 0:02:59.4]} 23... Rcd8 {[%clk
0:02:29]} 24. Bxc6 {[%clk 0:02:51.6]} 24... bxc6 {[%clk 0:02:27.5]} 25. Rxc6
{[%clk 0:02:49.8]} 25... Kh8 {[%clk 0:02:24.3]} 26. d5+ {[%clk 0:02:46.7]} 26...
f6 {[%clk 0:02:21.3]} 27. Re7 {[%clk 0:02:43.7]} 27... Rg8+ {[%clk 0:02:15.8]}
28. Kh2 {[%clk 0:02:42.2]} 28... Rdf8 {[%clk 0:02:05.8]} 29. Nf7+ {[%clk
0:02:39]} 29... Rxf7 {[%clk 0:02:04.8]} 30. Rxf7 {[%clk 0:02:38.4]} 30... Rg6
{[%clk 0:01:56.8]} 31. Rc8+ {[%clk 0:02:35.9]} 31... Rg8 {[%clk 0:01:53.2]} 32.
Bxf6# {[%clk 0:02:34.1]} 1-0

[Event "Live Chess"]
[Site "Chess.com"]
[Date "2023.05.20"]
[Round "-"]
[White "hturner40"]
[Black "wadsy27"]
[Result "0-1"]
[WhiteElo "1814"]
[BlackElo "2556"]
[TimeControl "300"]
[EndTime "14:27:27 PDT"]
[Termination "wadsy27 won by resignation"]

1. Nf3 {[%clk 0:04:56.3]} 1... d5 {[%clk 0:04:58.5]} 2. g3 {[%clk 0:04:55.3]}
2... Nf6 {[%clk 0:04:56.4]} 3. Bg2 {[%clk 0:04:54.3]} 3... c6 {[%clk 0:04:54.1]}
4. O-O {[%clk 0:04:52.4]} 4... Bg4 {[%clk 0:04:53]} 5. c4 {[%clk 0:04:50.2]}
5... Bxf3 {[%clk 0:04:45.8]} 6. exf3 {[%clk 0:04:24.6]} 6... e6 {[%clk
0:04:41.3]} 7. Qb3 {[%clk 0:04:17.7]} 7... Qb6 {[%clk 0:04:37]} 8. Nc3 {[%clk
0:04:06.7]} 8... Nbd7 {[%clk 0:04:34.6]} 9. cxd5 {[%clk 0:03:52.4]} 9... Qxb3
{[%clk 0:04:32.1]} 10. axb3 {[%clk 0:03:49.4]} 10... Nxd5 {[%clk 0:04:31.8]} 11.
Nxd5 {[%clk 0:03:43.5]} 11... cxd5 {[%clk 0:04:30.9]} 12. d4 {[%clk 0:03:40.4]}
12... Bd6 {[%clk 0:04:25.3]} 13. Bf4 {[%clk 0:03:21.7]} 13... Ke7 {[%clk
0:04:23.7]} 14. Rfc1 {[%clk 0:03:16.6]} 14... a6 {[%clk 0:04:19]} 15. Bxd6+
{[%clk 0:03:10.5]} 15... Kxd6 {[%clk 0:04:16.8]} 16. f4 {[%clk 0:03:09.3]} 16...
Rhc8 {[%clk 0:04:15.7]} 17. Rc3 {[%clk 0:02:54.4]} 17... Rc6 {[%clk 0:04:11.2]}
18. Rac1 {[%clk 0:02:51.4]} 18... Rac8 {[%clk 0:04:11.1]} 19. Bh3 {[%clk
0:02:34.3]} 19... Nf6 {[%clk 0:04:09.9]} 20. f3 {[%clk 0:02:24.3]} 20... g6
{[%clk 0:04:05.3]} 21. Bf1 {[%clk 0:02:13]} 21... Kd7 {[%clk 0:03:58.9]} 22. b4
{[%clk 0:02:04.7]} 22... Ne8 {[%clk 0:03:55]} 23. b5 {[%clk 0:02:00.5]} 23...
Rxc3 {[%clk 0:03:54.1]} 24. Rxc3 {[%clk 0:01:56.6]} 24... Rxc3 {[%clk
0:03:50.8]} 25. bxc3 {[%clk 0:01:55]} 25... a5 {[%clk 0:03:50.4]} 26. c4 {[%clk
0:01:51.7]} 26... dxc4 {[%clk 0:03:48.8]} 27. Bxc4 {[%clk 0:01:50.6]} 27... Nd6
{[%clk 0:03:48.4]} 28. Bd3 {[%clk 0:01:44.8]} 28... a4 {[%clk 0:03:47.6]} 29. b6
{[%clk 0:01:31.9]} 29... a3 {[%clk 0:03:43.5]} 30. Bb1 {[%clk 0:01:23.9]} 30...
Nb5 {[%clk 0:03:42.2]} 31. Kf2 {[%clk 0:01:08.1]} 31... Nc3 {[%clk 0:03:38.6]}
0-1

[Event "Live Chess"]
[Site "Chess.com"]
[Date "2023.05.20"]
[Round "-"]
[White "Jo1ts"]
[Black "stevochess11"]
[Result "1-0"]
[WhiteElo "736"]
[BlackElo "1766"]
[TimeControl "300"]
[EndTime "14:27:28 PDT"]
[Termination "Jo1ts won - game abandoned"]

1. d4 {[%clk 0:04:57.7]} 1... Nf6 {[%clk 0:04:58]} 2. Bf4 {[%clk 0:04:56.9]}
2... g6 {[%clk 0:04:56.6]} 3. Nf3 {[%clk 0:04:55.6]} 3... Bg7 {[%clk 0:04:55.5]}
4. e3 {[%clk 0:04:53.6]} 4... d5 {[%clk 0:04:52.3]} 5. Nbd2 {[%clk 0:04:52.6]}
5... O-O {[%clk 0:04:50.9]} 6. Bd3 {[%clk 0:04:52]} 6... c5 {[%clk 0:04:49]} 7.
c3 {[%clk 0:04:50.6]} 7... Nc6 {[%clk 0:04:47.5]} 8. c4 {[%clk 0:04:47.5]} 8...
cxd4 {[%clk 0:04:42.2]} 9. exd4 {[%clk 0:04:42.6]} 9... Bg4 {[%clk 0:04:39.7]}
10. c5 {[%clk 0:04:38.5]} 10... Nxd4 {[%clk 0:04:38.2]} 11. Be2 {[%clk
0:04:31.4]} 11... Nxe2 {[%clk 0:04:33.2]} 12. Qxe2 {[%clk 0:04:31.3]} 12... Ne4
{[%clk 0:04:16.6]} 13. Nxe4 {[%clk 0:04:17.8]} 13... dxe4 {[%clk 0:04:16.5]} 14.
Qxe4 {[%clk 0:04:10.7]} 14... Bxb2 {[%clk 0:04:14]} 15. Rb1 {[%clk 0:04:07]}
15... Bc3+ {[%clk 0:04:11.6]} 16. Bd2 {[%clk 0:04:02.4]} 16... Bxd2+ {[%clk
0:04:08.6]} 17. Nxd2 {[%clk 0:04:00.9]} 17... Bf5 {[%clk 0:04:07.1]} 18. Qb4
{[%clk 0:03:46.5]} 18... Bxb1 {[%clk 0:04:05.1]} 19. Qxb1 {[%clk 0:03:46.4]}
19... Qc7 {[%clk 0:03:59.4]} 20. Qc2 {[%clk 0:03:42.2]} 20... Rac8 {[%clk
0:03:58]} 21. O-O {[%clk 0:03:39]} 1-0

[Event "Live Chess"]
[Site "Chess.com"]
[Date "2023.05.20"]
[Round "-"]
[White "chrisbradgate"]
[Black "LL220284LL"]
[Result "0-1"]
[WhiteElo "861"]
[BlackElo "2377"]
[TimeControl "300"]
[EndTime "14:27:30 PDT"]
[Termination "LL220284LL won on time"]

1. d4 {[%clk 0:04:56.8]} 1... g6 {[%clk 0:04:59.9]} 2. Bf4 {[%clk 0:04:55.8]}
2... Bg7 {[%clk 0:04:59.3]} 3. e3 {[%clk 0:04:54.5]} 3... d6 {[%clk 0:04:58.9]}
4. c3 {[%clk 0:04:53.7]} 4... Nd7 {[%clk 0:04:58.3]} 5. Bb5 {[%clk 0:04:52.3]}
5... c6 {[%clk 0:04:57.3]} 6. Ba4 {[%clk 0:04:51.1]} 6... e5 {[%clk 0:04:56.9]}
7. dxe5 {[%clk 0:04:49.9]} 7... dxe5 {[%clk 0:04:56.8]} 8. Bg3 {[%clk
0:04:46.8]} 8... Ngf6 {[%clk 0:04:56.4]} 9. Nf3 {[%clk 0:04:44.9]} 9... Qe7
{[%clk 0:04:55.4]} 10. O-O {[%clk 0:04:42.9]} 10... O-O {[%clk 0:04:54.6]} 11.
Nbd2 {[%clk 0:04:38.5]} 11... Nh5 {[%clk 0:04:52.9]} 12. Bh4 {[%clk 0:04:29.8]}
12... Qe6 {[%clk 0:04:50.5]} 13. Ne4 {[%clk 0:04:18.3]} 13... h6 {[%clk
0:04:47.1]} 14. Bb3 {[%clk 0:04:09.4]} 14... Qg4 {[%clk 0:04:32]} 15. Nd6 {[%clk
0:03:33.9]} 15... Nc5 {[%clk 0:04:27.4]} 16. Nxc8 {[%clk 0:03:31.3]} 16... Raxc8
{[%clk 0:04:25.4]} 17. Qe2 {[%clk 0:03:16.4]} 17... e4 {[%clk 0:04:22.1]} 18.
Rad1 {[%clk 0:02:37.7]} 18... exf3 {[%clk 0:04:20.1]} 19. Qxf3 {[%clk
0:02:37.1]} 19... Qxh4 {[%clk 0:04:18.1]} 20. g3 {[%clk 0:02:26.5]} 20... Qf6
{[%clk 0:04:15.3]} 21. Qg4 {[%clk 0:02:11.6]} 21... Nxb3 {[%clk 0:04:09.4]} 22.
axb3 {[%clk 0:02:09.8]} 22... Rcd8 {[%clk 0:04:05.5]} 23. Rfe1 {[%clk
0:02:04.5]} 23... Qe7 {[%clk 0:04:02.5]} 24. Kf1 {[%clk 0:01:57.1]} 24... Nf6
{[%clk 0:04:00.6]} 25. Qh3 {[%clk 0:01:45.5]} 25... Rxd1 {[%clk 0:03:56.4]} 26.
Rxd1 {[%clk 0:01:41.7]} 26... Rd8 {[%clk 0:03:56.3]} 27. Rxd8+ {[%clk
0:01:25.6]} 27... Qxd8 {[%clk 0:03:55]} 28. Kg2 {[%clk 0:01:19.1]} 28... Qd5+
{[%clk 0:03:53.3]} 29. Kf1 {[%clk 0:01:09.2]} 29... Qxb3 {[%clk 0:03:53.2]} 30.
Qc8+ {[%clk 0:01:06.2]} 30... Kh7 {[%clk 0:03:50.2]} 31. Kg2 {[%clk 0:00:55]}
31... Qd5+ {[%clk 0:03:47.9]} 32. Kf1 {[%clk 0:00:46.5]} 32... Qd7 {[%clk
0:03:47.8]} 33. Qb8 {[%clk 0:00:29.2]} 33... a6 {[%clk 0:03:46.3]} 34. Qa7
{[%clk 0:00:23.5]} 34... Ne4 {[%clk 0:03:43.1]} 35. Kg2 {[%clk 0:00:12.6]} 35...
Qd2 {[%clk 0:03:41.7]} 36. Kh3 {[%clk 0:00:01]} 36... Qxf2 {[%clk 0:03:41.6]}
0-1

[Event "Live Chess"]
[Site "Chess.com"]
[Date "2023.05.20"]
[Round "-"]
[White "Oleg_Silin"]
[Black "KeithArkell"]
[Result "0-1"]
[WhiteElo "1464"]
[BlackElo "2618"]
[TimeControl "300"]
[EndTime "14:27:35 PDT"]
[Termination "KeithArkell won by resignation"]

1. c4 {[%clk 0:04:57.2]} 1... c5 {[%clk 0:04:58.9]} 2. Nc3 {[%clk 0:04:54.6]}
2... Nc6 {[%clk 0:04:57.2]} 3. g3 {[%clk 0:04:51.5]} 3... g6 {[%clk 0:04:56.5]}
4. Bg2 {[%clk 0:04:49.7]} 4... Bg7 {[%clk 0:04:55.9]} 5. Nf3 {[%clk 0:04:48.6]}
5... Nf6 {[%clk 0:04:55.2]} 6. e3 {[%clk 0:04:45.9]} 6... O-O {[%clk 0:04:53.7]}
7. d4 {[%clk 0:04:41.4]} 7... cxd4 {[%clk 0:04:52.9]} 8. exd4 {[%clk 0:04:41.2]}
8... d5 {[%clk 0:04:50.7]} 9. cxd5 {[%clk 0:04:32.2]} 9... Nxd5 {[%clk
0:04:49.7]} 10. O-O {[%clk 0:04:30.2]} 10... Bg4 {[%clk 0:04:48.6]} 11. h3
{[%clk 0:04:25.6]} 11... Bxf3 {[%clk 0:04:45.9]} 12. Bxf3 {[%clk 0:04:23.5]}
12... Nxc3 {[%clk 0:04:45.1]} 13. bxc3 {[%clk 0:04:21.6]} 13... Rc8 {[%clk
0:04:44.3]} 14. Ba3 {[%clk 0:04:15.7]} 14... Re8 {[%clk 0:04:41.8]} 15. Re1
{[%clk 0:04:12.9]} 15... e6 {[%clk 0:04:40.7]} 16. Bg2 {[%clk 0:03:59.9]} 16...
b6 {[%clk 0:04:36.8]} 17. Qa4 {[%clk 0:03:51.2]} 17... Na5 {[%clk 0:04:33.4]}
18. Rac1 {[%clk 0:03:31.9]} 18... Rc7 {[%clk 0:04:27.8]} 19. Bb4 {[%clk
0:03:23.4]} 19... Nc4 {[%clk 0:04:26.4]} 20. Qd1 {[%clk 0:03:06.7]} 20... a5
{[%clk 0:04:23.3]} 21. Ba3 {[%clk 0:02:38]} 21... Nxa3 {[%clk 0:04:20.7]} 22.
Qb3 {[%clk 0:02:37.6]} 22... Nc4 {[%clk 0:04:19.3]} 23. Bf1 {[%clk 0:02:36.7]}
23... Qc8 {[%clk 0:04:14.6]} 24. Bxc4 {[%clk 0:02:29.9]} 24... Rxc4 {[%clk
0:04:12.8]} 25. Qxb6 {[%clk 0:02:29.1]} 25... Rxc3 {[%clk 0:04:12.4]} 0-1

[Event "Live Chess"]
[Site "Chess.com"]
[Date "2023.05.20"]
[Round "-"]
[White "OSmith06"]
[Black "lucaskk818"]
[Result "1-0"]
[WhiteElo "1671"]
[BlackElo "1881"]
[TimeControl "300"]
[EndTime "14:27:39 PDT"]
[Termination "OSmith06 won by resignation"]

1. e4 {[%clk 0:04:57.4]} 1... c5 {[%clk 0:04:59]} 2. Nf3 {[%clk 0:04:56.4]} 2...
e6 {[%clk 0:04:58.5]} 3. d4 {[%clk 0:04:54.7]} 3... cxd4 {[%clk 0:04:58.4]} 4.
Nxd4 {[%clk 0:04:54.6]} 4... Nf6 {[%clk 0:04:57.6]} 5. Nc3 {[%clk 0:04:52.3]}
5... Nc6 {[%clk 0:04:56.3]} 6. Be3 {[%clk 0:04:51.1]} 6... Bb4 {[%clk
0:04:54.7]} 7. f3 {[%clk 0:04:49.9]} 7... d5 {[%clk 0:04:48.3]} 8. exd5 {[%clk
0:04:47.4]} 8... Nxd5 {[%clk 0:04:45.2]} 9. Nxc6 {[%clk 0:04:38.5]} 9... bxc6
{[%clk 0:04:45.1]} 10. Bd2 {[%clk 0:04:26.5]} 10... O-O {[%clk 0:04:24.9]} 11.
Bd3 {[%clk 0:04:23.2]} 11... Qh4+ {[%clk 0:04:08]} 12. g3 {[%clk 0:04:18.4]}
12... Qd4 {[%clk 0:04:06.3]} 13. Nxd5 {[%clk 0:04:11.3]} 13... Bxd2+ {[%clk
0:04:01.3]} 14. Qxd2 {[%clk 0:04:05.9]} 14... cxd5 {[%clk 0:04:00.1]} 15. c3
{[%clk 0:04:02.6]} 15... Qe5+ {[%clk 0:03:55.6]} 16. Qe2 {[%clk 0:03:58.6]}
16... Qxe2+ {[%clk 0:03:52.4]} 17. Kxe2 {[%clk 0:03:58.5]} 17... a5 {[%clk
0:03:48.9]} 18. a3 {[%clk 0:03:52]} 18... Ba6 {[%clk 0:03:48.3]} 19. b4 {[%clk
0:03:49.3]} 19... Bxd3+ {[%clk 0:03:45.7]} 20. Kxd3 {[%clk 0:03:49.2]} 20...
axb4 {[%clk 0:03:43.4]} 21. axb4 {[%clk 0:03:48.6]} 21... h6 {[%clk 0:03:39.7]}
22. Ra5 {[%clk 0:03:44.5]} 22... Rxa5 {[%clk 0:03:37.8]} 23. bxa5 {[%clk
0:03:44.4]} 23... Ra8 {[%clk 0:03:35.4]} 24. Ra1 {[%clk 0:03:43.7]} 24... Kf8
{[%clk 0:03:33]} 25. Kd4 {[%clk 0:03:42.7]} 25... Ke7 {[%clk 0:03:30.2]} 26. Kc5
{[%clk 0:03:42]} 26... Kd7 {[%clk 0:03:27.5]} 27. Kb6 {[%clk 0:03:41.3]} 27...
Kc8 {[%clk 0:03:22.5]} 28. a6 {[%clk 0:03:38.8]} 28... Rb8+ {[%clk 0:03:15.7]}
29. Kc6 {[%clk 0:03:35.9]} 29... Ra8 {[%clk 0:03:13.8]} 30. a7 {[%clk
0:03:33.5]} 30... g5 {[%clk 0:03:07.6]} 31. Kb6 {[%clk 0:03:29.4]} 31... h5
{[%clk 0:03:00.7]} 32. Ra5 {[%clk 0:03:27.1]} 32... Kd8 {[%clk 0:02:50.2]} 33.
Kb7 {[%clk 0:03:24.2]} 1-0

[Event "Live Chess"]
[Site "Chess.com"]
[Date "2023.05.20"]
[Round "-"]
[White "CeladonFish"]
[Black "LiamBellwood"]
[Result "0-1"]
[WhiteElo "1060"]
[BlackElo "2065"]
[TimeControl "300"]
[EndTime "14:27:40 PDT"]
[Termination "LiamBellwood won by checkmate"]

1. d4 {[%clk 0:04:58.1]} 1... e6 {[%clk 0:04:59.9]} 2. c4 {[%clk 0:04:57.1]}
2... f5 {[%clk 0:04:59.4]} 3. Nc3 {[%clk 0:04:56.5]} 3... Nf6 {[%clk 0:04:58.9]}
4. Bf4 {[%clk 0:04:55.9]} 4... Be7 {[%clk 0:04:52.6]} 5. Nf3 {[%clk 0:04:54.2]}
5... O-O {[%clk 0:04:51.6]} 6. e3 {[%clk 0:04:52.9]} 6... b6 {[%clk 0:04:49.9]}
7. Be2 {[%clk 0:04:51.5]} 7... Bb7 {[%clk 0:04:49.6]} 8. O-O {[%clk 0:04:50.5]}
8... Ne4 {[%clk 0:04:48.9]} 9. Nxe4 {[%clk 0:04:48.5]} 9... fxe4 {[%clk
0:04:46.8]} 10. Ne5 {[%clk 0:04:46.5]} 10... d6 {[%clk 0:04:42]} 11. Ng4 {[%clk
0:04:42.4]} 11... h5 {[%clk 0:04:37]} 12. Qb3 {[%clk 0:04:28.7]} 12... hxg4
{[%clk 0:03:59.5]} 13. Bxg4 {[%clk 0:04:07.6]} 13... Bc8 {[%clk 0:03:58.7]} 14.
c5 {[%clk 0:04:04.1]} 14... d5 {[%clk 0:03:54.1]} 15. f3 {[%clk 0:03:48.7]}
15... exf3 {[%clk 0:03:34.6]} 16. Rxf3 {[%clk 0:03:46.7]} 16... Bg5 {[%clk
0:03:34.2]} 17. cxb6 {[%clk 0:03:33.3]} 17... axb6 {[%clk 0:03:31.1]} 18. Raf1
{[%clk 0:03:29.5]} 18... Bxf4 {[%clk 0:03:21.6]} 19. Rxf4 {[%clk 0:03:27.7]}
19... Rxf4 {[%clk 0:03:20.3]} 20. Rxf4 {[%clk 0:03:27.2]} 20... Nc6 {[%clk
0:02:59.1]} 21. Qb5 {[%clk 0:03:16.9]} 21... Qd6 {[%clk 0:02:44.5]} 22. a3
{[%clk 0:03:07.3]} 22... Ba6 {[%clk 0:02:42.9]} 23. Qa4 {[%clk 0:02:57.7]} 23...
Bb7 {[%clk 0:02:41.6]} 24. Qd1 {[%clk 0:02:54.7]} 24... Rf8 {[%clk 0:02:35.6]}
25. Rxf8+ {[%clk 0:02:44.5]} 25... Kxf8 {[%clk 0:02:35.5]} 26. Qf3+ {[%clk
0:02:42.7]} 26... Kg8 {[%clk 0:02:34.9]} 27. Qh3 {[%clk 0:02:35.9]} 27... Bc8
{[%clk 0:02:13.7]} 28. Qh5 {[%clk 0:02:34]} 28... Ne7 {[%clk 0:01:52.1]} 29.
Qe8+ {[%clk 0:02:27.1]} 29... Kh7 {[%clk 0:01:45.9]} 30. Kf2 {[%clk 0:02:07.4]}
30... Bd7 {[%clk 0:01:35.8]} 31. Qh5+ {[%clk 0:02:04.2]} 31... Kg8 {[%clk
0:01:34.6]} 32. Qg5 {[%clk 0:01:34.6]} 32... Nf5 {[%clk 0:01:27.8]} 33. Qd8+
{[%clk 0:01:30.8]} 33... Kf7 {[%clk 0:01:24]} 34. Bh5+ {[%clk 0:01:03.1]} 34...
g6 {[%clk 0:01:18.6]} 35. Bg4 {[%clk 0:00:58.9]} 35... Be8 {[%clk 0:01:07.8]}
36. h3 {[%clk 0:00:54.2]} 36... Qxd8 {[%clk 0:01:06.6]} 37. Bxf5 {[%clk
0:00:52.7]} 37... exf5 {[%clk 0:01:05.7]} 38. g4 {[%clk 0:00:52.2]} 38... fxg4
{[%clk 0:01:04.7]} 39. hxg4 {[%clk 0:00:51.9]} 39... Qg5 {[%clk 0:01:04.4]} 40.
Kg3 {[%clk 0:00:51]} 40... Bd7 {[%clk 0:01:04]} 41. e4 {[%clk 0:00:50]} 41...
Qxg4+ {[%clk 0:01:03.2]} 42. Kf2 {[%clk 0:00:49.4]} 42... Qxe4 {[%clk
0:01:02.6]} 43. b4 {[%clk 0:00:47.5]} 43... Bh3 {[%clk 0:01:01.8]} 44. b5 {[%clk
0:00:46.9]} 44... Qxd4+ {[%clk 0:01:00.8]} 45. Kf3 {[%clk 0:00:46.3]} 45... Qe4+
{[%clk 0:00:59.3]} 46. Kg3 {[%clk 0:00:44.9]} 46... Qg4+ {[%clk 0:00:57.4]} 47.
Kf2 {[%clk 0:00:44.2]} 47... d4 {[%clk 0:00:56.2]} 48. a4 {[%clk 0:00:42.7]}
48... Qg2+ {[%clk 0:00:53.1]} 49. Ke1 {[%clk 0:00:40.1]} 49... d3 {[%clk
0:00:53]} 50. a5 {[%clk 0:00:37.3]} 50... Qe2# {[%clk 0:00:52.5]} 0-1

[Event "Live Chess"]
[Site "Chess.com"]
[Date "2023.05.20"]
[Round "-"]
[White "friarnator"]
[Black "smoggyrabbit"]
[Result "1-0"]
[WhiteElo "2001"]
[BlackElo "1703"]
[TimeControl "300"]
[EndTime "14:27:55 PDT"]
[Termination "friarnator won on time"]

1. d4 {[%clk 0:04:58.2]} 1... e6 {[%clk 0:04:58.7]} 2. Nc3 {[%clk 0:04:56.9]}
2... f5 {[%clk 0:04:57.8]} 3. h4 {[%clk 0:04:54.6]} 3... Nf6 {[%clk 0:04:56.2]}
4. h5 {[%clk 0:04:53.8]} 4... h6 {[%clk 0:04:50]} 5. Nh3 {[%clk 0:04:50.9]} 5...
b6 {[%clk 0:04:48.6]} 6. Nf4 {[%clk 0:04:49.5]} 6... Bb7 {[%clk 0:04:47.7]} 7.
Ng6 {[%clk 0:04:48.4]} 7... Rg8 {[%clk 0:04:44]} 8. Bf4 {[%clk 0:04:44.2]} 8...
Bb4 {[%clk 0:04:39.1]} 9. e3 {[%clk 0:04:36.1]} 9... Ne4 {[%clk 0:04:35.5]} 10.
Rb1 {[%clk 0:04:22.7]} 10... Bxc3+ {[%clk 0:04:10.5]} 11. bxc3 {[%clk
0:04:18.2]} 11... Nxc3 {[%clk 0:04:10.4]} 12. Qc1 {[%clk 0:04:17.8]} 12... Nxb1
{[%clk 0:04:06.5]} 13. Qxb1 {[%clk 0:04:17.7]} 13... Nc6 {[%clk 0:03:52.4]} 14.
c4 {[%clk 0:04:08.3]} 14... Ne7 {[%clk 0:03:48.3]} 15. Ne5 {[%clk 0:03:59.5]}
15... a6 {[%clk 0:03:23]} 16. Rh3 {[%clk 0:03:49.4]} 16... d6 {[%clk 0:03:20.4]}
17. Nf3 {[%clk 0:03:23.6]} 17... Qd7 {[%clk 0:02:13.4]} 18. Rg3 {[%clk
0:03:14.2]} 18... Qa4 {[%clk 0:01:58]} 19. Be2 {[%clk 0:03:03.1]} 19... Be4
{[%clk 0:01:50.4]} 20. Qb3 {[%clk 0:02:59.7]} 20... Qxb3 {[%clk 0:01:36.1]} 21.
axb3 {[%clk 0:02:59.6]} 21... Bc2 {[%clk 0:01:30.3]} 22. Bd1 {[%clk 0:02:55.3]}
22... Bxd1 {[%clk 0:01:28.2]} 23. Kxd1 {[%clk 0:02:55.2]} 23... Kd7 {[%clk
0:01:22.3]} 24. Nd2 {[%clk 0:02:52.8]} 24... c5 {[%clk 0:01:13.6]} 25. Kc2
{[%clk 0:02:50.3]} 25... b5 {[%clk 0:01:10.1]} 26. f3 {[%clk 0:02:44.9]} 26...
Kc6 {[%clk 0:01:07.5]} 27. Rh3 {[%clk 0:02:36.6]} 27... b4 {[%clk 0:00:55.9]}
28. Rh1 {[%clk 0:02:33.3]} 28... a5 {[%clk 0:00:52.7]} 29. Ra1 {[%clk
0:02:31.5]} 29... g5 {[%clk 0:00:40.6]} 30. hxg6 {[%clk 0:02:28.9]} 30... Rxg6
{[%clk 0:00:39]} 31. g3 {[%clk 0:02:25.5]} 31... Rgg8 {[%clk 0:00:18.9]} 32.
Bxh6 {[%clk 0:02:18.4]} 32... Rxg3 {[%clk 0:00:17.5]} 33. Bf4 {[%clk 0:02:16.1]}
33... Rg2 {[%clk 0:00:16.8]} 34. Kd3 {[%clk 0:02:15.7]} 34... Rgg8 {[%clk
0:00:14.5]} 35. e4 {[%clk 0:02:13.2]} 35... fxe4+ {[%clk 0:00:13]} 36. fxe4
{[%clk 0:02:11.2]} 36... Ra7 {[%clk 0:00:11.9]} 37. d5+ {[%clk 0:02:10.2]} 37...
exd5 {[%clk 0:00:10.9]} 38. cxd5+ {[%clk 0:02:08.3]} 38... Kb7 {[%clk
0:00:09.2]} 39. Nc4 {[%clk 0:02:08.2]} 39... Rga8 {[%clk 0:00:06.7]} 40. Bxd6
{[%clk 0:02:02.3]} 40... a4 {[%clk 0:00:05.6]} 41. bxa4 {[%clk 0:01:59.7]} 41...
Rxa4 {[%clk 0:00:04.4]} 42. Rxa4 {[%clk 0:01:59.6]} 42... Rxa4 {[%clk
0:00:03.7]} 43. Bxe7 {[%clk 0:01:59.3]} 43... b3 {[%clk 0:00:02.8]} 44. Nb2
{[%clk 0:01:51.1]} 44... Rb4 {[%clk 0:00:02]} 45. Bxc5 {[%clk 0:01:48.9]} 45...
Rb5 {[%clk 0:00:01.3]} 46. Kc4 {[%clk 0:01:47.2]} 46... Ka6 {[%clk 0:00:00.8]}
47. d6 {[%clk 0:01:44.3]} 47... Ka5 {[%clk 0:00:00.7]} 48. d7 {[%clk 0:01:43.5]}
1-0

[Event "Live Chess"]
[Site "Chess.com"]
[Date "2023.05.20"]
[Round "-"]
[White "therealab0ne"]
[Black "ProfPoisson"]
[Result "0-1"]
[WhiteElo "701"]
[BlackElo "1130"]
[TimeControl "300"]
[EndTime "14:27:56 PDT"]
[Termination "ProfPoisson won by resignation"]

1. e4 {[%clk 0:04:59.6]} 1... e5 {[%clk 0:04:55.9]} 2. Bc4 {[%clk 0:04:58.7]}
2... Nf6 {[%clk 0:04:53.3]} 3. d3 {[%clk 0:04:58.1]} 3... c6 {[%clk 0:04:50.3]}
4. Nc3 {[%clk 0:04:50.4]} 4... d5 {[%clk 0:04:48.7]} 5. exd5 {[%clk 0:04:49.4]}
5... cxd5 {[%clk 0:04:46.6]} 6. Nxd5 {[%clk 0:04:41.7]} 6... Nxd5 {[%clk
0:04:44.8]} 7. Nf3 {[%clk 0:04:38.9]} 7... Bb4+ {[%clk 0:04:35.7]} 8. Bd2 {[%clk
0:04:34]} 8... Nc6 {[%clk 0:04:24.5]} 9. O-O {[%clk 0:04:30.6]} 9... Bg4 {[%clk
0:04:11.3]} 10. Bb5 {[%clk 0:04:23.6]} 10... O-O {[%clk 0:04:03.4]} 11. Bxc6
{[%clk 0:04:22]} 11... bxc6 {[%clk 0:03:59.4]} 12. h3 {[%clk 0:04:20.4]} 12...
Bxf3 {[%clk 0:03:55.3]} 13. Qxf3 {[%clk 0:04:19.1]} 13... Bxd2 {[%clk
0:03:52.7]} 14. Rad1 {[%clk 0:04:11.7]} 14... Bh6 {[%clk 0:03:36.9]} 15. Rfe1
{[%clk 0:04:06.3]} 15... Qg5 {[%clk 0:03:21.9]} 16. Qe4 {[%clk 0:03:50]} 16...
Nf4 {[%clk 0:03:13]} 17. c3 {[%clk 0:03:27.7]} 17... Nxh3+ {[%clk 0:03:10.6]}
18. Kf1 {[%clk 0:03:19.2]} 18... Nf4 {[%clk 0:02:55.2]} 19. d4 {[%clk 0:03:11]}
19... Qxg2+ {[%clk 0:02:50.6]} 20. Qxg2 {[%clk 0:03:09.6]} 20... Nxg2 {[%clk
0:02:48.9]} 21. Kxg2 {[%clk 0:03:09.1]} 21... exd4 {[%clk 0:02:47.2]} 22. cxd4
{[%clk 0:03:02.7]} 22... Rfe8 {[%clk 0:02:45.8]} 23. Rxe8+ {[%clk 0:03:00.8]}
23... Rxe8 {[%clk 0:02:43.5]} 24. Rc1 {[%clk 0:02:59.5]} 24... f5 {[%clk
0:02:33.3]} 25. Rxc6 {[%clk 0:02:37.9]} 25... Re2 {[%clk 0:02:24.4]} 26. d5
{[%clk 0:02:35.2]} 26... Rxb2 {[%clk 0:02:18.2]} 27. d6 {[%clk 0:02:34.3]} 27...
Bg5 {[%clk 0:02:12.8]} 28. Rc8+ {[%clk 0:02:16.6]} 28... Kf7 {[%clk 0:02:08.5]}
29. Kg3 {[%clk 0:02:01.9]} 29... Rxa2 {[%clk 0:02:05.3]} 30. f4 {[%clk
0:02:00.7]} 30... Bf6 {[%clk 0:02:02.3]} 31. d7 {[%clk 0:01:47.7]} 31... Rd2
{[%clk 0:01:54.2]} 32. d8=N+ {[%clk 0:01:38.7]} 32... Bxd8 {[%clk 0:01:50.8]}
0-1